{"text_format":"1","workbook":"xlsx","n_sheets":7,"sheets":["Monday","Tuesday","Wednesday","Thursday","Friday","Saturday","Sunday"],"not_rendered":{"charts":0,"images":0,"macros":0,"external_links":0,"defined_names":21,"comments":0,"pivot_tables":0},"unopened":[],"bounds":{"document_bytes":16777216,"sheet_cells":100000,"rows_first":2000,"rows_last":500,"rows_between":2000,"halvings":0,"cell_chars":16384,"cell_head_chars":4096},"cells_cut":0,"cells_raw":0,"read":"whole","date_system":"1900"}

{"sheet":"Monday","index":0,"n_rows":10,"n_cols":13,"rows_kept":10,"cut":false,"hidden":false,"merged":[[1,2,1,4],[2,2,2,4],[0,1,0,4]]}
[null,"Shift Schedule"]
[null,"For the Week of: ","Date"]
[null,"Department Name: ","Name"]
[]
[null,"MONDAY","7:00 AM","8:00 AM","9:00 AM","10:00 AM","11:00 AM","12:00 PM","1:00 PM","2:00 PM","3:00 PM","Sick?","TOTAL"]
[null,"Name 1","manager","manager","manager","manager","manager","manager","manager","manager","manager",null,{"$f":"COUNTIF(Monday[[#This Row],[7:00 AM]:[3:00 PM]],\"*\")","v":9}]
[null,"Name 2",null,"cashier","cashier","cashier","cashier",null,null,null,null,null,{"$f":"COUNTIF(Monday[[#This Row],[7:00 AM]:[3:00 PM]],\"*\")","v":4}]
[null,"Name 3",null,"front desk","front desk","front desk","front desk ","front desk","front desk","front desk",null,null,{"$f":"COUNTIF(Monday[[#This Row],[7:00 AM]:[3:00 PM]],\"*\")","v":7}]
[null,"Name 4",null,"front desk","front desk","front desk","front desk ","front desk","front desk","front desk",null,null,{"$f":"COUNTIF(Monday[[#This Row],[7:00 AM]:[3:00 PM]],\"*\")","v":7}]
[null,"Name 5",null,null,null,null,null,null,null,null,null,"Sick",{"$f":"COUNTIF(Monday[[#This Row],[7:00 AM]:[3:00 PM]],\"*\")","v":0}]

{"sheet":"Tuesday","index":1,"n_rows":10,"n_cols":13,"rows_kept":10,"cut":false,"hidden":false,"merged":[[1,2,1,4],[2,2,2,4],[0,1,0,4]]}
[null,"Shift Schedule"]
[null,"For the Week of: ",{"$f":"Monday!C2","v":"Date"}]
[null,"Department Name: ",{"$f":"Monday!C3","v":"Name"}]
[]
[null,"TUESDAY","7:00 AM","8:00 AM","9:00 AM","10:00 AM","11:00 AM","12:00 PM","1:00 PM","2:00 PM","3:00 PM","Sick?","TOTAL"]
[null,"Name 1","manager","manager","manager","manager","manager","manager","manager","manager","manager",null,{"$f":"COUNTIF(Tuesday[[#This Row],[7:00 AM]:[3:00 PM]],\"*\")","v":9}]
[null,"Name 2",null,"cashier","cashier","cashier","cashier",null,null,null,null,null,{"$f":"COUNTIF(Tuesday[[#This Row],[7:00 AM]:[3:00 PM]],\"*\")","v":4}]
[null,"Name 3",null,"front desk","front desk","front desk","front desk ","front desk","front desk","front desk",null,null,{"$f":"COUNTIF(Tuesday[[#This Row],[7:00 AM]:[3:00 PM]],\"*\")","v":7}]
[null,"Name 4",null,"front desk","front desk","front desk","front desk ","front desk","front desk","front desk",null,null,{"$f":"COUNTIF(Tuesday[[#This Row],[7:00 AM]:[3:00 PM]],\"*\")","v":7}]
[null,"Name 5",null,null,null,null,null,null,null,null,null,"Sick",{"$f":"COUNTIF(Tuesday[[#This Row],[7:00 AM]:[3:00 PM]],\"*\")","v":0}]

{"sheet":"Wednesday","index":2,"n_rows":10,"n_cols":13,"rows_kept":10,"cut":false,"hidden":false,"merged":[[1,2,1,4],[2,2,2,4],[0,1,0,4]]}
[null,"Shift Schedule"]
[null,"For the Week of: ",{"$f":"Monday!C2","v":"Date"}]
[null,"Department Name: ",{"$f":"Monday!C3","v":"Name"}]
[]
[null,"WEDNESDAY","7:00 AM","8:00 AM","9:00 AM","10:00 AM","11:00 AM","12:00 PM","1:00 PM","2:00 PM","3:00 PM","Sick?","TOTAL"]
[null,"Name 1","manager","manager","manager","manager","manager","manager","manager","manager","manager",null,{"$f":"COUNTIF(Wednesday[[#This Row],[7:00 AM]:[3:00 PM]],\"*\")","v":9}]
[null,"Name 2",null,"cashier","cashier","cashier","cashier",null,null,null,null,null,{"$f":"COUNTIF(Wednesday[[#This Row],[7:00 AM]:[3:00 PM]],\"*\")","v":4}]
[null,"Name 3",null,"front desk","front desk","front desk","front desk ","front desk","front desk","front desk",null,null,{"$f":"COUNTIF(Wednesday[[#This Row],[7:00 AM]:[3:00 PM]],\"*\")","v":7}]
[null,"Name 4",null,"front desk","front desk","front desk","front desk ","front desk","front desk","front desk",null,null,{"$f":"COUNTIF(Wednesday[[#This Row],[7:00 AM]:[3:00 PM]],\"*\")","v":7}]
[null,"Name 5",null,null,null,null,null,null,null,null,null,"Sick",{"$f":"COUNTIF(Wednesday[[#This Row],[7:00 AM]:[3:00 PM]],\"*\")","v":0}]

{"sheet":"Thursday","index":3,"n_rows":10,"n_cols":13,"rows_kept":10,"cut":false,"hidden":false,"merged":[[1,2,1,4],[2,2,2,4],[0,1,0,4]]}
[null,"Shift Schedule"]
[null,"For the Week of: ",{"$f":"Monday!C2","v":"Date"}]
[null,"Department Name: ",{"$f":"Monday!C3","v":"Name"}]
[]
[null,"THURSDAY","7:00 AM","8:00 AM","9:00 AM","10:00 AM","11:00 AM","12:00 PM","1:00 PM","2:00 PM","3:00 PM","Sick?","TOTAL"]
[null,"Name 1","manager","manager","manager","manager","manager","manager","manager","manager","manager",null,{"$f":"COUNTIF(Thursday[[#This Row],[7:00 AM]:[3:00 PM]],\"*\")","v":9}]
[null,"Name 2",null,"cashier","cashier","cashier","cashier",null,null,null,null,null,{"$f":"COUNTIF(Thursday[[#This Row],[7:00 AM]:[3:00 PM]],\"*\")","v":4}]
[null,"Name 3",null,"front desk","front desk","front desk","front desk ","front desk","front desk","front desk",null,null,{"$f":"COUNTIF(Thursday[[#This Row],[7:00 AM]:[3:00 PM]],\"*\")","v":7}]
[null,"Name 4",null,"front desk","front desk","front desk","front desk ","front desk","front desk","front desk",null,null,{"$f":"COUNTIF(Thursday[[#This Row],[7:00 AM]:[3:00 PM]],\"*\")","v":7}]
[null,"Name 5",null,null,null,null,null,null,null,null,null,"Sick",{"$f":"COUNTIF(Thursday[[#This Row],[7:00 AM]:[3:00 PM]],\"*\")","v":0}]

{"sheet":"Friday","index":4,"n_rows":10,"n_cols":13,"rows_kept":10,"cut":false,"hidden":false,"merged":[[1,2,1,4],[2,2,2,4],[0,1,0,4]]}
[null,"Shift Schedule"]
[null,"For the Week of: ",{"$f":"Monday!C2","v":"Date"}]
[null,"Department Name: ",{"$f":"Monday!C3","v":"Name"}]
[]
[null,"FRIDAY","7:00 AM","8:00 AM","9:00 AM","10:00 AM","11:00 AM","12:00 PM","1:00 PM","2:00 PM","3:00 PM","Sick?","TOTAL"]
[null,"Name 1","manager","manager","manager","manager","manager","manager","manager","manager","manager",null,{"$f":"COUNTIF(Friday[[#This Row],[7:00 AM]:[3:00 PM]],\"*\")","v":9}]
[null,"Name 2",null,"cashier","cashier","cashier","cashier",null,null,null,null,null,{"$f":"COUNTIF(Friday[[#This Row],[7:00 AM]:[3:00 PM]],\"*\")","v":4}]
[null,"Name 3",null,"front desk","front desk","front desk","front desk ","front desk","front desk","front desk",null,null,{"$f":"COUNTIF(Friday[[#This Row],[7:00 AM]:[3:00 PM]],\"*\")","v":7}]
[null,"Name 4",null,"front desk","front desk","front desk","front desk ","front desk","front desk","front desk",null,null,{"$f":"COUNTIF(Friday[[#This Row],[7:00 AM]:[3:00 PM]],\"*\")","v":7}]
[null,"Name 5",null,null,null,null,null,null,null,null,null,"Sick",{"$f":"COUNTIF(Friday[[#This Row],[7:00 AM]:[3:00 PM]],\"*\")","v":0}]

{"sheet":"Saturday","index":5,"n_rows":10,"n_cols":13,"rows_kept":10,"cut":false,"hidden":false,"merged":[[1,2,1,4],[2,2,2,4],[0,1,0,4]]}
[null,"Shift Schedule"]
[null,"For the Week of: ",{"$f":"Monday!C2","v":"Date"}]
[null,"Department Name: ",{"$f":"Monday!C3","v":"Name"}]
[]
[null,"SATURDAY","7:00 AM","8:00 AM","9:00 AM","10:00 AM","11:00 AM","12:00 PM","1:00 PM","2:00 PM","3:00 PM","Sick?","TOTAL"]
[null,"Name 1","manager","manager","manager","manager","manager","manager","manager","manager","manager",null,{"$f":"COUNTIF(Saturday[[#This Row],[7:00 AM]:[3:00 PM]],\"*\")","v":9}]
[null,"Name 2",null,"cashier","cashier","cashier","cashier",null,null,null,null,null,{"$f":"COUNTIF(Saturday[[#This Row],[7:00 AM]:[3:00 PM]],\"*\")","v":4}]
[null,"Name 3",null,"front desk","front desk","front desk","front desk ","front desk","front desk","front desk",null,null,{"$f":"COUNTIF(Saturday[[#This Row],[7:00 AM]:[3:00 PM]],\"*\")","v":7}]
[null,"Name 4",null,"front desk","front desk","front desk","front desk ","front desk","front desk","front desk",null,null,{"$f":"COUNTIF(Saturday[[#This Row],[7:00 AM]:[3:00 PM]],\"*\")","v":7}]
[null,"Name 5",null,null,null,null,null,null,null,null,null,"Sick",{"$f":"COUNTIF(Saturday[[#This Row],[7:00 AM]:[3:00 PM]],\"*\")","v":0}]

{"sheet":"Sunday","index":6,"n_rows":10,"n_cols":13,"rows_kept":10,"cut":false,"hidden":false,"merged":[[1,2,1,4],[2,2,2,4],[0,1,0,4]]}
[null,"Shift Schedule"]
[null,"For the Week of: ",{"$f":"Monday!C2","v":"Date"}]
[null,"Department Name: ",{"$f":"Monday!C3","v":"Name"}]
[]
[null,"SUNDAY","7:00 AM","8:00 AM","9:00 AM","10:00 AM","11:00 AM","12:00 PM","1:00 PM","2:00 PM","3:00 PM","Sick?","TOTAL"]
[null,"Name 1","manager","manager","manager","manager","manager","manager","manager","manager","manager",null,{"$f":"COUNTIF(Sunday[[#This Row],[7:00 AM]:[3:00 PM]],\"*\")","v":9}]
[null,"Name 2",null,"cashier","cashier","cashier","cashier",null,null,null,null,null,{"$f":"COUNTIF(Sunday[[#This Row],[7:00 AM]:[3:00 PM]],\"*\")","v":4}]
[null,"Name 3",null,"front desk","front desk","front desk","front desk ","front desk","front desk","front desk",null,null,{"$f":"COUNTIF(Sunday[[#This Row],[7:00 AM]:[3:00 PM]],\"*\")","v":7}]
[null,"Name 4",null,"front desk","front desk","front desk","front desk ","front desk","front desk","front desk",null,null,{"$f":"COUNTIF(Sunday[[#This Row],[7:00 AM]:[3:00 PM]],\"*\")","v":7}]
[null,"Name 5",null,null,null,null,null,null,null,null,null,"Sick",{"$f":"COUNTIF(Sunday[[#This Row],[7:00 AM]:[3:00 PM]],\"*\")","v":0}]